[Event "CZE Extraliga 2019-20"]
[Site "Czech Republic"]
[Date "2019.12.01"]
[Round "4.3"]
[White "Shevchenko, Kirill"]
[Black "Druska, Juraj"]
[Result "1-0"]
[ECO "C11"]
[WhiteElo "2541"]
[BlackElo "2472"]
[Annotator "ChessBase"]
[PlyCount "57"]
[EventDate "2019.09.15"]
[EventType "team-tourn"]
[EventCountry "CZE"]
[SourceTitle "playchess.com"]
[Source "ChessBase"]
[SourceQuality "1"]
[WhiteTeam "Pardubice "]
[BlackTeam "Siesta Solution Unichess "]
[TimeControl "40/5400+30:1800+30"]

1. e4 {[%emt 0:00:00]} e6 {[%emt 0:02:25]} 2. d4 {[%emt 0:00:00]} d5 {[%emt 0:00:07]} 3. Nc3 {[%emt 0:00:00]} Nf6 {[%emt 0:00:59]} 4. e5 {[%emt 0:00:12]} Nfd7 {[%emt 0:00:06]} 5. f4 {[%emt 0:00:12]} c5 {[%emt 0:00:06]} 6. Nf3 {[%emt 0:00:04]} Nc6 {[%emt 0:00:05]} 7. Be3 {[%emt 0:00:06]} Be7 {[%emt 0:00:05]} 8. Qd2 {[%emt 0:01:35]} O-O {[%emt 0:00:09]} 9. dxc5 {[%emt 0:00:03]} Qa5 {[%emt 0:00:05]} 10. O-O-O {[%emt 0:03:23]} b6 {[%emt 0:00:04]} 11. Bb5 {[%emt 0:01:14]} Nb4 {[%emt 0:00:24]} 12. a3 {[%emt 0:02:31]} bxc5 {[%emt 0:00:28]} 13. Kb1 {[%emt 0:01:45]} Nb6 {[%emt 0:44:37]} 14. f5 {[%emt 0:28:28]} d4 {[%emt 0:14:12]} 15. Bxd4 {[%emt 0:13:57]} cxd4 {[%emt 0:01:44]} 16. Nxd4 {[%emt 0:03:54]} Rd8 {[%emt 0:01:57]} 17. f6 {[%emt 0:11:50]} Bf8 {[%emt 0:10:47]} 18. fxg7 {[%emt 0:05:32]} Be7 {[%emt 0:00:24]} 19. Qh6 {[%emt 0:05:02]} Rxd4 {[%emt 0:16:28]} 20. Rxd4 {[%emt 0:03:09]} N6d5 {[%emt 0:00:06]} 21. Rxd5 {[%emt 0:09:36]} exd5 {[%emt 0:00:15]} 22. axb4 {[%emt 0:00:11]} Qb6 {[%emt 0:00:48]} 23. Bc6 {[%emt 0:02:04]} Bg5 {[%emt 0:03:48]} 24. Qd6 {[%emt 0:01:48]} Bb7 {[%emt 0:00:06]} 25. Bxd5 {[%emt 0:02:02]} Qxd6 {[%emt 0:01:08]} 26. exd6 {[%emt 0:00:01]} Bxd5 {[%emt 0:00:05]} 27. Nxd5 {[%emt 0:00:03]} Rd8 {[%emt 0:00:09]} 28. Ne7+ {[%emt 0:02:39]} Kxg7 {[%emt 0:00:16]} 29. c4 {[%emt 0:00:44]} 1-0

[Event "CZE Extraliga 2019-20"]
[Site "Czech Republic"]
[Date "2019.12.01"]
[Round "4.3"]
[White "Kraus, Tomas"]
[Black "Carlsson, Pontus"]
[Result "0-1"]
[ECO "A40"]
[WhiteElo "2473"]
[BlackElo "2447"]
[Annotator "ChessBase"]
[PlyCount "80"]
[EventDate "2019.09.15"]
[EventType "team-tourn"]
[EventCountry "CZE"]
[SourceTitle "playchess.com"]
[Source "ChessBase"]
[SourceQuality "1"]
[WhiteTeam "Turnov "]
[BlackTeam "Praha"]
[TimeControl "40/5400+30:1800+30"]

1. d4 {[%emt 0:00:00]} Nf6 {[%emt 0:09:58]} 2. c4 {[%emt 0:00:13]} e6 {[%emt 0:00:06]} 3. Nf3 {[%emt 0:00:34]} b6 {[%emt 0:01:32]} 4. a3 {[%emt 0:01:17]} Ba6 {[%emt 0:00:44]} 5. Qc2 {[%emt 0:00:58]} Bb7 {[%emt 0:01:09]} 6. Nc3 {[%emt 0:00:16]} c5 {[%emt 0:00:34]} 7. e4 {[%emt 0:00:21]} cxd4 {[%emt 0:00:32]} 8. Nxd4 {[%emt 0:00:05]} d6 {[%emt 0:05:04]} 9. Be2 {[%emt 0:01:40]} Be7 {[%emt 0:05:19]} 10. Be3 {[%emt 0:02:24]} O-O {[%emt 0:15:47]} 11. O-O {[%emt 0:01:07]} a6 {[%emt 0:07:00]} 12. Rad1 {[%emt 0:01:19]} Qc7 {[%emt 0:03:03]} 13. f4 {[%emt 0:00:25]} Nbd7 {[%emt 0:03:57]} 14. g4 {[%emt 0:01:19]} Nc5 {[%emt 0:17:34]} 15. Bf3 {[%emt 0:00:05]} Rfc8 {[%emt 0:13:06]} 16. g5 {[%emt 0:03:06]} Ne8 {[%emt 0:00:46]} 17. Qg2 {[%emt 0:11:31]} g6 {[%emt 0:08:28]} 18. f5 {[%emt 0:04:50]} e5 {[%emt 0:02:17]} 19. Nc2 {[%emt 0:08:23]} b5 {[%emt 0:01:46]} 20. f6 {[%emt 0:22:39]} Bd8 {[%emt 0:00:19]} 21. Bg4 {[%emt 0:02:27]} Nxe4 {[%emt 0:00:35]} 22. Nd5 {[%emt 0:13:15]} Bxd5 {[%emt 0:00:51]} 23. Rxd5 {[%emt 0:00:27]} Qxc4 {[%emt 0:00:14]} 24. Nb4 {[%emt 0:01:38]} a5 {[%emt 0:00:46]} 25. Bxc8 {[%emt 0:04:42]} Rxc8 {[%emt 0:00:04]} 26. Rdd1 {[%emt 0:03:52]} axb4 {[%emt 0:00:03]} 27. Rc1 {[%emt 0:00:43]} Bb6 {[%emt 0:01:24]} 28. Rxc4 {[%emt 0:02:13]} Bxe3+ {[%emt 0:00:03]} 29. Kh1 {[%emt 0:00:02]} Rxc4 {[%emt 0:00:04]} 30. b3 {[%emt 0:02:30]} Rd4 {[%emt 0:00:18]} 31. h4 {[%emt 0:03:18]} h6 {[%emt 0:01:31]} 32. Qh3 {[%emt 0:01:12]} Bf4 {[%emt 0:00:33]} 33. Qc8 {[%emt 0:01:36]} Ng3+ {[%emt 0:00:29]} 34. Kg2 {[%emt 0:02:42]} Kf8 {[%emt 0:00:07]} 35. gxh6 {[%emt 0:00:42]} Rd2+ {[%emt 0:00:52]} 36. Kh3 {[%emt 0:01:21]} Nxf1 {[%emt 0:00:25]} 37. Qd8 {[%emt 0:02:40]} Rh2+ {[%emt 0:00:21]} 38. Kg4 {[%emt 0:00:02]} Ne3+ {[%emt 0:00:08]} 39. Kf3 {[%emt 0:00:04]} Nd5 {[%emt 0:01:09]} 40. h5 {[%emt 0:01:28]} Rxh5 {[%emt 0:00:23]} 0-1

[Event "CZE Extraliga 2019-20"]
[Site "Czech Republic"]
[Date "2019.12.01"]
[Round "4.3"]
[White "Blahynka, Martin"]
[Black "Yemelin, Vasily"]
[Result "1-0"]
[ECO "B32"]
[WhiteElo "2423"]
[BlackElo "2545"]
[Annotator "ChessBase"]
[PlyCount "87"]
[EventDate "2019.09.15"]
[EventType "team-tourn"]
[EventCountry "CZE"]
[SourceTitle "playchess.com"]
[Source "ChessBase"]
[SourceQuality "1"]
[WhiteTeam "Duras"]
[BlackTeam "Lysa nad Labem "]
[TimeControl "40/5400+30:1800+30"]

1. e4 {[%emt 0:00:00]} c5 {[%emt 0:00:01]} 2. Nf3 {[%emt 0:00:00]} Nc6 {[%emt 0:01:21]} 3. d4 {[%emt 0:00:00]} cxd4 {[%emt 0:00:06]} 4. Nxd4 {[%emt 0:00:00]} Qb6 {[%emt 0:02:11]} 5. Nb3 {[%emt 0:00:43]} Nf6 {[%emt 0:02:01]} 6. Nc3 {[%emt 0:01:02]} e6 {[%emt 0:00:06]} 7. Be3 {[%emt 0:01:38]} Qc7 {[%emt 0:00:14]} 8. Qd2 {[%emt 0:04:59]} a6 {[%emt 0:07:03]} 9. O-O-O {[%emt 0:01:02]} b5 {[%emt 0:02:40]} 10. f3 {[%emt 0:21:08]} Rb8 {[%emt 0:20:36]} 11. Bf4 {[%emt 0:31:33]} Ne5 {[%emt 0:01:51]} 12. Nd4 {[%emt 0:03:18]} b4 {[%emt 0:19:01]} 13. Na4 {[%emt 0:04:18]} Be7 {[%emt 0:05:59]} 14. g4 {[%emt 0:03:48]} d6 {[%emt 0:08:58]} 15. b3 {[%emt 0:00:04]} O-O {[%emt 0:02:13]} 16. g5 {[%emt 0:09:44]} Nfd7 {[%emt 0:09:44]} 17. h4 {[%emt 0:00:25]} Bb7 {[%emt 0:00:28]} 18. Kb1 {[%emt 0:03:18]} Nc5 {[%emt 0:01:02]} 19. Nxc5 {[%emt 0:00:48]} dxc5 {[%emt 0:00:45]} 20. Qh2 {[%emt 0:03:20]} Bd6 {[%emt 0:08:33]} 21. Ne2 {[%emt 0:00:11]} f6 {[%emt 0:00:04]} 22. gxf6 {[%emt 0:01:13]} gxf6 {[%emt 0:00:04]} 23. Bh3 {[%emt 0:03:16]} Qe7 {[%emt 0:01:30]} 24. Nc1 {[%emt 0:01:55]} Rbd8 {[%emt 0:03:32]} 25. Rhg1+ {[%emt 0:02:29]} Kf7 {[%emt 0:01:36]} 26. Rxd6 {[%emt 0:01:59]} Qxd6 {[%emt 0:00:05]} 27. Nd3 {[%emt 0:00:23]} Rg8 {[%emt 0:00:31]} 28. Nxe5+ {[%emt 0:00:41]} fxe5 {[%emt 0:00:13]} 29. Bg5 {[%emt 0:00:33]} Rdf8 {[%emt 0:01:30]} 30. Bg4 {[%emt 0:00:32]} Rg6 {[%emt 0:00:22]} 31. Bh5 {[%emt 0:00:28]} Kg8 {[%emt 0:00:27]} 32. Bxg6 {[%emt 0:00:15]} hxg6 {[%emt 0:00:04]} 33. h5 {[%emt 0:00:47]} Rxf3 {[%emt 0:01:07]} 34. hxg6 {[%emt 0:00:06]} Qc7 {[%emt 0:00:27]} 35. Rh1 {[%emt 0:00:59]} Qg7 {[%emt 0:00:12]} 36. Bh6 {[%emt 0:00:28]} Qf6 {[%emt 0:00:15]} 37. Bg5 {[%emt 0:00:16]} Qg7 {[%emt 0:00:41]} 38. Qh4 {[%emt 0:00:43]} c4 {[%emt 0:00:45]} 39. Bh6 {[%emt 0:00:31]} Qf6 {[%emt 0:00:30]} 40. Bg5 {[%emt 0:00:34]} Qg7 {[%emt 0:00:31]} 41. bxc4 {[%emt 0:04:14]} a5 {[%emt 0:00:36]} 42. Qh7+ {[%emt 0:08:43]} Qxh7 {[%emt 0:00:22]} 43. gxh7+ {[%emt 0:00:04]} Kh8 {[%emt 0:00:04]} 44. Rh6 {[%emt 0:00:07]} 1-0

[Event "CZE Extraliga 2019-20"]
[Site "Czech Republic"]
[Date "2019.12.01"]
[Round "4.3"]
[White "Velicka, Petr"]
[Black "Malinovsky, Karel"]
[Result "1/2-1/2"]
[ECO "B38"]
[WhiteElo "2420"]
[BlackElo "2478"]
[Annotator "ChessBase"]
[PlyCount "67"]
[EventDate "2019.09.15"]
[EventType "team-tourn"]
[EventCountry "CZE"]
[SourceTitle "playchess.com"]
[Source "ChessBase"]
[SourceQuality "1"]
[WhiteTeam " Ostrava"]
[BlackTeam "Kromeriz"]
[TimeControl "40/5400+30:1800+30"]

1. e4 {[%emt 0:00:00]} c5 {[%emt 0:00:00]} 2. Nf3 {[%emt 0:00:00]} g6 {[%emt 0:00:03]} 3. c4 {[%emt 0:00:00]} Nc6 {[%emt 0:00:23]} 4. d4 {[%emt 0:00:01]} cxd4 {[%emt 0:00:06]} 5. Nxd4 {[%emt 0:00:05]} Bg7 {[%emt 0:00:23]} 6. Be3 {[%emt 0:00:10]} Nf6 {[%emt 0:00:28]} 7. Nc3 {[%emt 0:00:07]} d6 {[%emt 0:00:41]} 8. Be2 {[%emt 0:00:40]} O-O {[%emt 0:00:41]} 9. O-O {[%emt 0:07:55]} Bd7 {[%emt 0:00:24]} 10. Nc2 {[%emt 0:00:14]} Rc8 {[%emt 0:01:58]} 11. Rc1 {[%emt 0:05:50]} Ne5 {[%emt 0:07:09]} 12. Na3 {[%emt 0:00:59]} a6 {[%emt 0:02:29]} 13. f3 {[%emt 0:01:37]} Be6 {[%emt 0:06:44]} 14. Nd5 {[%emt 0:02:49]} Bxd5 {[%emt 0:02:02]} 15. cxd5 {[%emt 0:04:33]} b5 {[%emt 0:02:43]} 16. Qd2 {[%emt 0:02:03]} Qd7 {[%emt 0:09:23]} 17. Nc2 {[%emt 0:04:04]} e6 {[%emt 0:11:15]} 18. Nb4 {[%emt 0:05:16]} exd5 {[%emt 0:09:56]} 19. Nxd5 {[%emt 0:00:46]} Nxd5 {[%emt 0:00:23]} 20. Qxd5 {[%emt 0:00:11]} Qe6 {[%emt 0:00:27]} 21. b3 {[%emt 0:10:00]} Qxd5 {[%emt 0:03:25]} 22. exd5 {[%emt 0:00:15]} Nd7 {[%emt 0:07:20]} 23. a4 {[%emt 0:06:24]} Rce8 {[%emt 0:06:59]} 24. Kf2 {[%emt 0:03:02]} Re5 {[%emt 0:00:56]} 25. f4 {[%emt 0:03:31]} Rxd5 {[%emt 0:01:59]} 26. axb5 {[%emt 0:00:09]} axb5 {[%emt 0:01:01]} 27. Rfd1 {[%emt 0:01:46]} Rxd1 {[%emt 0:02:13]} 28. Rxd1 {[%emt 0:00:33]} Nc5 {[%emt 0:00:17]} 29. b4 {[%emt 0:08:16]} Ne4+ {[%emt 0:03:37]} 30. Kf3 {[%emt 0:00:11]} Nc3 {[%emt 0:00:12]} 31. Rxd6 {[%emt 0:00:07]} Nxe2 {[%emt 0:03:04]} 32. Kxe2 {[%emt 0:00:06]} Re8 {[%emt 0:00:10]} 33. Rd5 {[%emt 0:03:20]} Bc3 {[%emt 0:01:18]} 34. Kd3 {[%emt 0:00:20]} 1/2-1/2

[Event "CZE Extraliga 2019-20"]
[Site "Czech Republic"]
[Date "2019.12.03"]
[Round "4.4"]
[White "Bartel, Mateusz"]
[Black "Heberla, Bartlomiej"]
[Result "1-0"]
[ECO "A54"]
[WhiteElo "2636"]
[BlackElo "2565"]
[Annotator "ChessBase"]
[PlyCount "94"]
[EventDate "2019.09.15"]
[EventType "team-tourn"]
[EventCountry "CZE"]
[SourceTitle "playchess.com"]
[Source "ChessBase"]
[SourceQuality "1"]
[WhiteTeam "Novoborsky"]
[BlackTeam "Brno"]
[WhiteTeamCountry "POL"]
[BlackTeamCountry "POL"]
[TimeControl "40/5400+30:1800+30"]

1. c4 {[%emt 0:00:00]} e5 {[%emt 0:00:00]} 2. Nc3 {[%emt 0:00:00]} Nf6 {[%emt 0:00:07]} 3. Nf3 {[%emt 0:00:00]} d6 {[%emt 0:00:08]} 4. g3 {[%emt 0:07:08]} Be7 {[%emt 0:00:29]} 5. d4 {[%emt 0:00:12]} Nbd7 {[%emt 0:00:05]} 6. Bg2 {[%emt 0:00:24]} c6 {[%emt 0:00:06]} 7. O-O {[%emt 0:00:46]} O-O {[%emt 0:00:04]} 8. Qc2 {[%emt 0:02:26]} a6 {[%emt 0:03:48]} 9. Rd1 {[%emt 0:01:39]} Qc7 {[%emt 0:00:07]} 10. Be3 {[%emt 0:11:49]} Re8 {[%emt 0:13:03]} 11. Rac1 {[%emt 0:00:36]} Bf8 {[%emt 0:05:14]} 12. h3 {[%emt 0:15:09]} b6 {[%emt 0:03:35]} 13. dxe5 {[%emt 0:07:18]} dxe5 {[%emt 0:01:47]} 14. Ng5 {[%emt 0:00:07]} Bb7 {[%emt 0:10:07]} 15. Qf5 {[%emt 0:05:12]} h6 {[%emt 0:08:37]} 16. Nh7 {[%emt 0:01:50]} Rad8 {[%emt 0:14:27]} 17. Nxf6+ {[%emt 0:02:18]} Nxf6 {[%emt 0:01:46]} 18. Bxh6 {[%emt 0:00:57]} Bc8 {[%emt 0:02:47]} 19. Qf3 {[%emt 0:00:12]} e4 {[%emt 0:00:24]} 20. Qf4 {[%emt 0:00:12]} Bd6 {[%emt 0:00:24]} 21. Qg5 {[%emt 0:02:57]} Bf8 {[%emt 0:00:05]} 22. Qh4 {[%emt 0:02:15]} gxh6 {[%emt 0:00:21]} 23. Qxf6 {[%emt 0:00:11]} Bg7 {[%emt 0:00:29]} 24. Rxd8 {[%emt 0:06:08]} Rxd8 {[%emt 0:00:52]} 25. Qh4 {[%emt 0:00:02]} e3 {[%emt 0:09:23]} 26. fxe3 {[%emt 0:00:55]} Re8 {[%emt 0:02:55]} 27. Ne4 {[%emt 0:08:36]} Bf5 {[%emt 0:14:59]} 28. Rd1 {[%emt 0:06:09]} Qe7 {[%emt 0:04:01]} 29. Qxe7 {[%emt 0:00:51]} Rxe7 {[%emt 0:00:01]} 30. Nd6 {[%emt 0:08:43]} Bg6 {[%emt 0:00:02]} 31. b3 {[%emt 0:00:38]} Rxe3 {[%emt 0:01:07]} 32. Kf2 {[%emt 0:00:07]} Re6 {[%emt 0:01:44]} 33. c5 {[%emt 0:01:55]} bxc5 {[%emt 0:01:22]} 34. Nc4 {[%emt 0:00:05]} Bc2 {[%emt 0:01:30]} 35. Rd8+ {[%emt 0:00:59]} Kh7 {[%emt 0:00:07]} 36. Ra8 {[%emt 0:00:11]} Bd4+ {[%emt 0:01:19]} 37. e3 {[%emt 0:01:33]} Bc3 {[%emt 0:00:01]} 38. Rxa6 {[%emt 0:00:27]} Bd3 {[%emt 0:00:17]} 39. Rxc6 {[%emt 0:00:09]} Rxc6 {[%emt 0:01:03]} 40. Bxc6 {[%emt 0:00:06]} Bxc4 {[%emt 0:00:13]} 41. bxc4 {[%emt 0:30:02]} Kg7 {[%emt 0:30:17]} 42. g4 {[%emt 0:05:25]} Kf6 {[%emt 0:00:00]} 43. Bd5 {[%emt 0:00:00]} Ke7 {[%emt 0:00:00]} 44. Kf3 {[%emt 0:00:00]} f6 {[%emt 0:00:00]} 45. Kf4 {[%emt 0:00:00]} Bd2 {[%emt 0:00:00]} 46. a4 {[%emt 0:00:00]} Kd6 {[%emt 0:00:00]} 47. Kf5 {[%emt 0:00:00]} Bc3 {[%emt 0:00:00]} 1-0

[Event "CZE Extraliga 2019-20"]
[Site "Czech Republic"]
[Date "2019.12.01"]
[Round "4.4"]
[White "Bernasek, Jan"]
[Black "Votava, Jan"]
[Result "1-0"]
[ECO "A17"]
[WhiteElo "2490"]
[BlackElo "2521"]
[Annotator "ChessBase"]
[PlyCount "77"]
[EventDate "2019.09.15"]
[EventType "team-tourn"]
[EventCountry "CZE"]
[SourceTitle "playchess.com"]
[Source "ChessBase"]
[SourceQuality "1"]
[WhiteTeam "Siesta Solution Unichess "]
[BlackTeam "Pardubice"]
[TimeControl "40/5400+30:1800+30"]

1. c4 {[%emt 0:00:00]} c5 {[%emt 0:00:00]} 2. Nf3 {[%emt 0:00:08]} Nf6 {[%emt 0:00:00]} 3. Nc3 {[%emt 0:00:22]} d5 {[%emt 0:00:06]} 4. cxd5 {[%emt 0:00:08]} Nxd5 {[%emt 0:00:02]} 5. e3 e6 {[%emt 0:06:38]} 6. Nxd5 {[%emt 0:05:04]} exd5 {[%emt 0:04:51]} 7. b4 {[%emt 0:01:38]} cxb4 {[%emt 0:07:21]} 8. Bb2 {[%emt 0:03:22]} Nc6 {[%emt 0:01:22]} 9. Rc1 {[%emt 0:08:02]} Be6 {[%emt 0:20:39]} 10. Nd4 {[%emt 0:08:11]} Nxd4 {[%emt 0:00:58]} 11. Bxd4 {[%emt 0:00:13]} f6 {[%emt 0:19:50]} 12. Bd3 {[%emt 0:06:40]} Be7 {[%emt 0:03:02]} 13. Qh5+ {[%emt 0:02:33]} Kf8 {[%emt 0:06:06]} 14. O-O {[%emt 0:03:59]} Qd7 {[%emt 0:03:23]} 15. f4 {[%emt 0:09:14]} Bd6 {[%emt 0:06:39]} 16. Qh4 {[%emt 0:04:28]} Bf5 {[%emt 0:04:40]} 17. Be2 {[%emt 0:03:16]} h5 {[%emt 0:01:48]} 18. Bf3 {[%emt 0:11:58]} Be7 {[%emt 0:01:45]} 19. Bc5 {[%emt 0:06:35]} b6 {[%emt 0:03:25]} 20. Bxe7+ {[%emt 0:06:58]} Kxe7 {[%emt 0:00:01]} 21. d3 {[%emt 0:00:24]} Rac8 {[%emt 0:04:11]} 22. e4 {[%emt 0:01:04]} Rxc1 {[%emt 0:01:08]} 23. Rxc1 {[%emt 0:00:06]} dxe4 {[%emt 0:00:19]} 24. dxe4 {[%emt 0:00:07]} Qd4+ {[%emt 0:01:05]} 25. Kh1 {[%emt 0:00:41]} Qb2 {[%emt 0:02:31]} 26. Re1 {[%emt 0:02:07]} Be6 {[%emt 0:00:33]} 27. e5 {[%emt 0:00:04]} Rc8 {[%emt 0:00:35]} 28. exf6+ {[%emt 0:03:04]} Qxf6 {[%emt 0:00:11]} 29. Qxh5 {[%emt 0:00:05]} Rc5 {[%emt 0:00:45]} 30. Qh7 {[%emt 0:01:08]} Kd7 {[%emt 0:00:32]} 31. Qe4 {[%emt 0:00:35]} Bd5 {[%emt 0:00:30]} 32. Rd1 {[%emt 0:04:01]} Qd6 {[%emt 0:00:17]} 33. Qxd5 {[%emt 0:03:35]} Rxd5 {[%emt 0:00:15]} 34. Rxd5 {[%emt 0:00:05]} a5 {[%emt 0:00:10]} 35. Rxd6+ {[%emt 0:01:53]} Kxd6 {[%emt 0:00:01]} 36. Bd1 {[%emt 0:00:18]} b5 {[%emt 0:00:48]} 37. g4 {[%emt 0:00:41]} a4 {[%emt 0:00:38]} 38. f5 {[%emt 0:00:39]} b3 {[%emt 0:00:43]} 39. Bxb3 {[%emt 0:00:07] Kd5} 1-0

[Event "CZE Extraliga 2019-20"]
[Site "Czech Republic"]
[Date "2019.12.01"]
[Round "4.4"]
[White "Zwardon, Vojtech"]
[Black "Cvek, Robert"]
[Result "1/2-1/2"]
[ECO "D53"]
[WhiteElo "2471"]
[BlackElo "2517"]
[Annotator "ChessBase"]
[PlyCount "24"]
[EventDate "2019.09.15"]
[EventType "team-tourn"]
[EventCountry "CZE"]
[SourceTitle "playchess.com"]
[Source "ChessBase"]
[SourceQuality "1"]
[WhiteTeam "Frydek-Mistek"]
[BlackTeam "Poruba "]
[TimeControl "40/5400+30:1800+30"]

1. c4 e6 {[%emt 0:00:00]} 2. Nc3 {[%emt 0:00:00]} d5 {[%emt 0:00:00]} 3. d4 {[%emt 0:00:00]} Nf6 {[%emt 0:00:38]} 4. Bg5 {[%emt 0:01:10]} Be7 {[%emt 0:00:46]} 5. cxd5 {[%emt 0:00:07]} Nxd5 {[%emt 0:01:58]} 6. Bxe7 {[%emt 0:00:12]} Qxe7 {[%emt 0:00:06]} 7. Nf3 {[%emt 0:00:27]} O-O {[%emt 0:02:16]} 8. Rc1 {[%emt 0:01:30]} Nxc3 {[%emt 0:00:22]} 9. Rxc3 {[%emt 0:00:15]} Nc6 {[%emt 0:00:12]} 10. e3 {[%emt 0:01:51]} e5 {[%emt 0:00:14]} 11. Nxe5 {[%emt 0:01:53]} Nxe5 {[%emt 0:00:06]} 12. dxe5 {[%emt 0:00:05]} Qxe5 {[%emt 0:00:06]} 1/2-1/2

[Event "CZE Extraliga 2019-20"]
[Site "Czech Republic"]
[Date "2019.12.01"]
[Round "4.4"]
[White "Mazur, Stefan"]
[Black "Rasik, Vitezslav"]
[Result "1/2-1/2"]
[ECO "B06"]
[WhiteElo "2445"]
[BlackElo "2470"]
[Annotator "ChessBase"]
[PlyCount "83"]
[EventDate "2019.09.15"]
[EventType "team-tourn"]
[EventCountry "CZE"]
[SourceTitle "playchess.com"]
[Source "ChessBase"]
[SourceQuality "1"]
[WhiteTeam "Kromeriz "]
[BlackTeam "Ostrava"]
[TimeControl "40/5400+30:1800+30"]

1. e4 {[%emt 0:00:00]} d6 {[%emt 0:00:00]} 2. d4 {[%emt 0:00:17]} g6 {[%emt 0:00:00]} 3. Nc3 {[%emt 0:00:05]} Bg7 {[%emt 0:00:00]} 4. Be3 {[%emt 0:00:10]} Nf6 {[%emt 0:00:02]} 5. Qd2 {[%emt 0:00:45]} c6 {[%emt 0:00:18]} 6. Bh6 {[%emt 0:03:09]} Bxh6 {[%emt 0:00:29]} 7. Qxh6 {[%emt 0:01:02]} Qa5 {[%emt 0:00:16]} 8. Bd3 {[%emt 0:01:47]} c5 {[%emt 0:00:50]} 9. d5 {[%emt 0:00:41]} Nbd7 {[%emt 0:01:44]} 10. O-O-O {[%emt 0:01:31]} b5 {[%emt 0:20:36]} 11. Bxb5 {[%emt 0:00:21]} Rb8 {[%emt 0:03:37]} 12. Bxd7+ {[%emt 0:01:12]} Bxd7 {[%emt 0:01:06]} 13. Nge2 {[%emt 0:00:23]} Qb4 {[%emt 0:11:31]} 14. b3 {[%emt 0:01:24]} a5 {[%emt 0:08:03]} 15. f3 {[%emt 0:40:57]} a4 {[%emt 0:12:26]} 16. bxa4 {[%emt 0:06:56]} Bxa4 {[%emt 0:11:59]} 17. Kd2 {[%emt 0:00:58]} Qa5 {[%emt 0:00:53]} 18. Rb1 {[%emt 0:01:13]} Kd7 {[%emt 0:04:52]} 19. Qg7 {[%emt 0:04:41]} Rhf8 {[%emt 0:03:35]} 20. Rxb8 {[%emt 0:03:29]} Rxb8 {[%emt 0:00:02]} 21. Qxf7 {[%emt 0:00:21]} Kd8 {[%emt 0:03:18]} 22. Qf8+ {[%emt 0:08:18]} Be8 {[%emt 0:00:16]} 23. Nf4 {[%emt 0:01:13]} Rb4 {[%emt 0:01:40]} 24. Ne6+ {[%emt 0:09:14]} Kd7 {[%emt 0:00:08]} 25. Qh6 {[%emt 0:05:15]} Rd4+ {[%emt 0:02:53]} 26. Nxd4 {[%emt 0:00:08]} cxd4 {[%emt 0:00:02]} 27. Rb1 {[%emt 0:00:16]} dxc3+ {[%emt 0:01:18]} 28. Ke1 {[%emt 0:03:50]} Qxa2 {[%emt 0:02:19]} 29. Qc1 {[%emt 0:00:52]} Qa7 {[%emt 0:01:46]} 30. Ke2 {[%emt 0:01:12]} e6 {[%emt 0:05:40]} 31. Qe3 {[%emt 0:02:46]} Qxe3+ {[%emt 0:01:05]} 32. Kxe3 {[%emt 0:00:02]} exd5 33. exd5 {[%emt 0:00:32]} Nxd5+ {[%emt 0:01:01]} 34. Kd4 {[%emt 0:00:03]} Kc6 {[%emt 0:01:55]} 35. Rb8 {[%emt 0:00:58]} Bd7 {[%emt 0:00:14]} 36. g4 {[%emt 0:00:59]} h5 {[%emt 0:01:18]} 37. gxh5 {[%emt 0:00:36]} gxh5 {[%emt 0:00:01]} 38. Rf8 {[%emt 0:00:09]} h4 {[%emt 0:00:54]} 39. f4 {[%emt 0:00:27]} Ne7 {[%emt 0:00:41]} 40. Kxc3 {[%emt 0:00:15]} Bf5 {[%emt 0:00:32]} 41. Rh8 {[%emt 0:04:27]} h3 {[%emt 0:02:22]} 42. Kd4 {[%emt 0:01:29]} 1/2-1/2

[Event "CZE Extraliga 2019-20"]
[Site "Czech Republic"]
[Date "2019.12.03"]
[Round "4.5"]
[White "Polak, Tomas"]
[Black "Krejci, Jan"]
[Result "0-1"]
[ECO "E46"]
[WhiteElo "2551"]
[BlackElo "2578"]
[Annotator "ChessBase"]
[PlyCount "108"]
[EventDate "2019.09.15"]
[EventType "team-tourn"]
[EventCountry "CZE"]
[SourceTitle "playchess.com"]
[Source "ChessBase"]
[SourceQuality "1"]
[WhiteTeam "Brno"]
[BlackTeam "Novoborsky"]
[WhiteTeamCountry "CZE"]
[BlackTeamCountry "CZE"]
[TimeControl "40/5400+30:1800+30"]

1. d4 {[%emt 0:00:00]} Nf6 {[%emt 0:00:00]} 2. c4 {[%emt 0:00:00]} e6 {[%emt 0:00:00]} 3. Nc3 {[%emt 0:01:00]} Bb4 {[%emt 0:01:53]} 4. e3 {[%emt 0:01:02]} O-O {[%emt 0:00:59]} 5. Nge2 {[%emt 0:00:20]} d5 {[%emt 0:01:42]} 6. a3 {[%emt 0:00:11]} Bd6 {[%emt 0:00:39]} 7. Ng3 {[%emt 0:01:42]} c5 {[%emt 0:08:05]} 8. dxc5 {[%emt 0:06:23]} Bxc5 {[%emt 0:00:40]} 9. b4 {[%emt 0:00:46]} Be7 {[%emt 0:08:24]} 10. Bb2 {[%emt 0:00:53]} Nc6 {[%emt 0:00:58]} 11. Rc1 {[%emt 0:14:54]} a5 {[%emt 0:08:38]} 12. b5 {[%emt 0:07:03]} Ne5 {[%emt 0:00:12]} 13. cxd5 {[%emt 0:00:14]} exd5 {[%emt 0:00:08]} 14. Qd4 {[%emt 0:00:31]} Nc4 {[%emt 0:05:02]} 15. Nxd5 {[%emt 0:05:23]} Nxb2 {[%emt 0:07:01]} 16. Nxe7+ {[%emt 0:19:00]} Qxe7 {[%emt 0:00:51]} 17. Qxb2 {[%emt 0:04:02]} h5 {[%emt 0:08:30]} 18. Bd3 {[%emt 0:04:05]} Rd8 {[%emt 0:08:47]} 19. Bb1 {[%emt 0:12:23]} h4 {[%emt 0:00:30]} 20. Ne2 {[%emt 0:00:30]} h3 {[%emt 0:00:30]} 21. gxh3 {[%emt 0:00:30]} Bxh3 {[%emt 0:00:30]} 22. Rg1 {[%emt 0:00:30]} Rac8 {[%emt 0:00:30]} 23. Rxc8 {[%emt 0:00:30]} Bxc8 {[%emt 0:00:30]} 24. Rg5 {[%emt 0:00:30]} Bg4 {[%emt 0:00:30]} 25. Nd4 {[%emt 0:00:30]} Qd6 {[%emt 0:08:10]} 26. f4 {[%emt 0:01:04]} Re8 {[%emt 0:03:39]} 27. Kf2 {[%emt 0:01:27]} Bd7 {[%emt 0:00:36]} 28. h3 {[%emt 0:04:45]} g6 {[%emt 0:03:28]} 29. Nf3 {[%emt 0:01:48]} Qe6 {[%emt 0:09:18]} 30. Bxg6 {[%emt 0:08:02]} fxg6 {[%emt 0:01:26]} 31. Rxg6+ {[%emt 0:00:07]} Kf7 {[%emt 0:00:03]} 32. Ne5+ {[%emt 0:00:16]} Ke7 {[%emt 0:01:24]} 33. Qd4 {[%emt 0:01:40]} Rd8 {[%emt 0:05:47]} 34. Rg7+ {[%emt 0:02:30]} Ke8 {[%emt 0:00:30]} 35. Qd3 {[%emt 0:01:13]} Qa2+ {[%emt 0:02:30]} 36. Kg3 {[%emt 0:00:58]} Nh5+ {[%emt 0:00:41]} 37. Kh4 {[%emt 0:00:04]} Nxg7 {[%emt 0:01:12]} 38. Qg6+ {[%emt 0:00:05]} Kf8 {[%emt 0:01:13]} 39. Qf6+ {[%emt 0:00:13]} Kg8 {[%emt 0:00:09]} 40. Qxd8+ {[%emt 0:00:11]} Be8 {[%emt 0:00:03]} 41. Ng4 {[%emt 0:31:57]} Qe6 {[%emt 0:08:04]} 42. e4 {[%emt 0:00:00]} Kf8 {[%emt 0:03:23]} 43. f5 {[%emt 0:00:00]} Qxe4 {[%emt 0:01:29]} 44. Qd6+ {[%emt 0:00:00]} Kg8 {[%emt 0:03:05]} 45. Qf6 {[%emt 0:00:00]} Qf4 {[%emt 0:00:17]} 46. Qg5 {[%emt 0:00:00]} Qxg5+ {[%emt 0:00:29]} 47. Kxg5 {[%emt 0:00:00]} Bxb5 {[%emt 0:00:09]} 48. Ne5 {[%emt 0:00:00]} Be8 {[%emt 0:02:38]} 49. Nc4 {[%emt 0:00:00]} a4 {[%emt 0:00:12]} 50. Nb6 {[%emt 0:00:36]} Bc6 {[%emt 0:06:14]} 51. h4 {[%emt 0:01:44]} Ne8 {[%emt 0:00:50]} 52. Kf4 {[%emt 0:01:42]} Nf6 {[%emt 0:00:29]} 53. Ke5 {[%emt 0:00:20]} Nd7+ {[%emt 0:01:03]} 54. Nxd7 {[%emt 0:00:22]} Bxd7 {[%emt 0:00:01]} 0-1